bitfinex/quotes_ETHUSD_20240714
["timestamp","ask_amount","ask_price","bid_price","bid_amount"]
[1720984170636,0.53003166,3196.5,3196.2,0.31287153]
[1720984170835,0.53003166,3196.5,3196.3,2.4523]
[1720984171729,0.53003166,3196.5,3196.3,4.95518]
[1720984175684,0.53003166,3196.5,3196.3,2.50288]
[1720984183312,0.53003166,3196.5,3196.2,0.31287153]
[1720984183479,0.53003166,3196.5,3196.2,2.81582153]
[1720984189937,0.53003166,3196.5,3196.2,6.11072153]
[1720984190234,0.53003166,3196.5,3196.3,2.4886]
[1720984190623,0.53003166,3196.5,3196.4,3.29481]
[1720984190929,0.49114758,3196.5,3196.4,3.29481]
[1720984191434,0.52891474,3196.5,3196.4,3.29481]
[1720984192553,0.49114758,3196.5,3196.4,3.29481]
[1720984192755,0.49114758,3196.5,3196.4,4.21583237]
[1720984198688,0.49114758,3196.5,3196.4,6.71864237]
[1720984204027,0.49114758,3196.5,3196.2,0.31287153]
[1720984204285,2.43830039,3196.4,3196.2,0.31287153]
[1720984204780,2.43830039,3196.4,3195.8,2.821772]
[1720984205882,0.49116307,3196.3,3195.8,2.821772]
[1720984206195,0.29294635,3196.2,3195.8,2.821772]
[1720984208174,0.29294635,3196.2,3195.8,5.325052]
[1720984208916,0.29294635,3196.2,3195.8,2.50328]
[1720984217243,0.49116307,3196.3,3195.8,2.50328]
[1720984224044,0.49116307,3196.3,3195.9,2.5032]
[1720984244289,0.49116307,3196.3,3195.7,5.00659]
[1720984244500,2.3368,3196.2,3195.7,5.00659]
[1720984244656,2.3368,3196.2,3195.8,2.50327]
[1720984244974,2.61959631,3196.2,3195.8,2.50327]
[1720984245176,2.61959631,3196.2,3195.7,2.50329]
[1720984245177,2.61959631,3196.2,3195.6,9.78337]
[1720984245372,2.61959631,3196.2,3195.6,7.28]
[1720984245576,2.3368,3196.0,3195.6,7.28]
[1720984245785,2.3368,3196.0,3195.4,23.23554]
[1720984245991,2.84906463,3196.0,3195.4,23.23554]
[1720984249495,2.84906463,3196.0,3195.4,3.29554]
[1720984249800,0.06841393,3195.9,3195.5,2.50351]
[1720984250891,0.06841393,3195.9,3195.5,5.00696]
[1720984251192,0.06841393,3195.9,3195.6,0.792]
[1720984251570,0.06841393,3195.9,3195.6,3.29542]
[1720984254672,0.06841393,3195.9,3195.8,2.50328]
[1720984254866,0.06841393,3195.9,3195.8,3.29528]
[1720984256596,0.06841393,3195.9,3195.8,5.79856]
[1720984257813,0.81858858,3196.3,3196.0,2.50307]
[1720984257989,0.0540812,3196.2,3196.0,2.50307]
[1720984258190,1.13732744,3196.3,3196.0,2.50307]
[1720984258390,1.13732744,3196.3,3196.0,5.00614]
[1720984258601,0.05408566,3196.2,3196.0,5.00614]
[1720984258920,0.81858858,3196.3,3196.0,5.00614]
[1720984259227,0.81858858,3196.3,3196.0,2.50307]
[1720984259411,0.05409013,3196.2,3196.0,2.50307]
[1720984259619,0.81858858,3196.3,3196.0,2.50307]
[1720984260155,0.05409013,3196.2,3196.0,2.50307]
[1720984260520,0.81858858,3196.3,3196.0,2.50307]
[1720984260699,0.05422304,3196.1,3196.0,2.50307]
[1720984261527,0.01429939,3196.1,3196.0,2.50307]
[1720984261933,0.81858858,3196.3,3196.0,2.50307]
[1720984262136,0.05422156,3196.1,3196.0,2.50307]
[1720984262305,0.81858858,3196.3,3196.0,2.50307]
[1720984262505,0.05422156,3196.1,3196.0,2.50307]
[1720984262900,0.81858858,3196.3,3196.0,2.50307]
[1720984263130,0.05422156,3196.1,3196.0,2.50307]
[1720984263334,0.81858858,3196.3,3196.0,2.50307]
[1720984263835,0.05408715,3196.2,3196.0,2.50307]
[1720984264531,0.81858858,3196.3,3196.0,2.50307]
[1720984264735,0.05422156,3196.1,3196.0,2.50307]
[1720984264939,0.81858858,3196.3,3196.0,2.50307]
[1720984265142,0.06852095,3196.1,3196.0,2.50307]
[1720984265327,0.81858858,3196.3,3196.0,2.50307]
[1720984265515,0.06852095,3196.1,3196.0,2.50307]
[1720984265716,1.13732744,3196.3,3196.0,2.50307]
[1720984265938,0.06852095,3196.1,3196.0,2.50307]
[1720984266140,1.13732744,3196.3,3196.0,2.50307]
[1720984266654,0.0685513,3196.2,3196.0,2.50307]
[1720984270444,0.42601917,3196.2,3196.0,2.50307]
[1720984304409,0.0685513,3196.2,3196.0,2.50307]
[1720984317116,0.0685513,3196.2,3196.1,4.80285]
[1720984317481,0.81858858,3196.3,3196.2,2.50297]
[1720984317912,0.8725101,3196.3,3196.2,2.50297]
[1720984321226,0.8871243,3196.3,3196.2,2.50297]
[1720984329214,0.81858858,3196.3,3196.2,8.946122]
[1720984329594,0.49116307,3196.3,3196.2,8.946122]
[1720984343235,0.55979846,3196.3,3196.2,8.946122]
[1720984344619,0.55979846,3196.3,3196.2,8.13634]
[1720984359265,0.55979846,3196.3,3196.2,5.79794]
[1720984363449,0.55979846,3196.3,3196.2,3.29497]
[1720984364051,0.55979846,3196.3,3195.8,2.50324]
[1720984364253,0.55979846,3196.3,3195.8,6.29524]
[1720984364471,0.55979846,3196.3,3195.8,8.79846]
[1720984364847,0.55979846,3196.3,3195.9,2.5032]
[1720984365076,0.55979846,3196.3,3196.0,3.0]
[1720984365797,0.55979846,3196.3,3195.9,2.5032]
[1720984366083,0.55979846,3196.3,3196.0,0.792]
[1720984367175,0.55979846,3196.3,3195.9,2.5032]
[1720984367377,0.55979846,3196.3,3195.9,3.2952]
[1720984368875,0.55979846,3196.3,3195.9,2.5032]
[1720984373291,0.55979846,3196.3,3196.0,0.792]
[1720984384495,0.55979846,3196.3,3196.0,3.29512]
[1720984384677,0.55979846,3196.3,3196.0,3.874945]
[1720984385371,0.55979846,3196.3,3196.1,2.3091]
[1720984389095,0.55979846,3196.3,3196.1,4.81214]
[1720984392875,0.55979846,3196.3,3196.1,2.50304]
[1720984419219,0.55979846,3196.3,3196.1,2.50299]
[1720984423330,0.55979846,3196.3,3196.1,5.00598]
[1720984423832,0.55979846,3196.3,3196.1,2.50299]
[1720984429906,2.3042,3196.2,3195.9,2.50315]
[1720984430536,0.068178,3196.1,3195.9,5.0063]
[1720984432007,0.068178,3196.1,3195.9,2.50315]
[1720984434433,0.068178,3196.1,3195.7,3.29531]
[1720984435847,0.068178,3196.1,3195.7,5.79861]
[1720984436007,0.068178,3196.1,3195.9,0.792]
[1720984437330,0.068178,3196.1,3195.9,3.29519]
[1720984440729,0.068178,3196.1,3195.9,5.79834]
[1720984443831,0.068178,3196.1,3196.0,2.50312]
[1720984448829,0.49116307,3196.3,3196.0,2.50312]
[1720984449160,0.05387861,3196.1,3196.0,2.50312]
[1720984449368,0.49116307,3196.3,3196.0,2.50312]
[1720984449369,0.01450709,3196.2,3196.0,2.50312]
[1720984449730,0.49116307,3196.3,3196.0,2.50312]
[1720984449935,0.05383566,3196.1,3196.0,2.50312]
[1720984450144,0.49116307,3196.3,3196.0,2.50312]
[1720984450380,0.05383566,3196.1,3196.0,2.50312]
[1720984450834,0.49116307,3196.3,3196.0,2.50312]
[1720984451026,0.05383566,3196.1,3196.0,2.50312]
[1720984451241,0.49116307,3196.3,3196.0,2.50312]
[1720984451440,0.05383566,3196.1,3196.0,2.50312]
[1720984451643,0.49116307,3196.3,3196.0,2.50312]
[1720984451862,0.05383566,3196.1,3196.0,2.50312]
[1720984452037,0.49116307,3196.3,3196.0,2.50312]
[1720984452038,0.01450709,3196.2,3196.0,2.50312]
[1720984452560,0.49116307,3196.3,3196.0,2.50312]
[1720984453062,0.0537442,3196.2,3196.0,2.50312]
[1720984453268,0.49116307,3196.3,3196.0,2.50312]
[1720984453467,0.06533464,3196.1,3196.0,2.50312]
[1720984453675,0.49116307,3196.3,3196.1,2.50304]
[1720984456464,0.00081015,3196.2,3196.1,2.50304]
[1720984456779,0.49116307,3196.3,3196.1,2.50304]
[1720984459748,0.06520023,3196.2,3196.1,2.50304]
[1720984460050,0.49116307,3196.3,3196.1,2.50304]
[1720984460249,0.06520023,3196.2,3196.1,2.50304]
[1720984460482,0.49116307,3196.3,3196.1,2.50304]
[1720984460783,0.06520023,3196.2,3196.1,2.50304]
[1720984461152,0.49116307,3196.3,3196.1,2.50304]
[1720984461347,0.06520023,3196.2,3196.1,2.50304]
[1720984461978,0.49116307,3196.3,3196.1,2.50304]
[1720984462175,0.06519726,3196.2,3196.1,2.50304]
[1720984462401,0.49116307,3196.3,3196.1,2.50304]
[1720984462585,0.06519726,3196.2,3196.1,2.50304]
[1720984462793,0.49116307,3196.3,3196.1,2.50304]
[1720984462973,0.06519726,3196.2,3196.1,2.50304]
[1720984463177,0.49116307,3196.3,3196.1,2.50304]
[1720984463600,0.06519726,3196.2,3196.1,2.50304]
[1720984463775,0.49116307,3196.3,3196.1,2.50304]
[1720984463978,0.06519726,3196.2,3196.1,2.50304]
[1720984464175,0.49116307,3196.3,3196.1,2.50304]
[1720984464391,0.06519726,3196.2,3196.1,2.50304]
[1720984464585,0.49116307,3196.3,3196.1,2.50304]
[1720984464792,0.06519726,3196.2,3196.1,2.50304]
[1720984464990,0.49116307,3196.3,3196.1,2.50304]
[1720984465174,0.06519726,3196.2,3196.1,2.50304]
[1720984465363,0.49116307,3196.3,3196.1,2.50304]
[1720984465569,0.06519726,3196.2,3196.1,2.50304]
[1720984465966,0.06524022,3196.2,3196.1,2.50304]
[1720984466171,0.49116307,3196.3,3196.1,2.50304]
[1720984466404,0.06519726,3196.2,3196.1,2.50304]
[1720984466716,0.49116307,3196.3,3196.1,2.50304]
[1720984466896,0.06519726,3196.2,3196.1,2.50304]
[1720984467098,0.49116307,3196.3,3196.1,2.50304]
[1720984467418,0.06519726,3196.2,3196.1,2.50304]
[1720984467585,0.49116307,3196.3,3196.1,2.50304]
[1720984467795,0.06537693,3196.2,3196.1,2.50304]
[1720984468002,0.49116307,3196.3,3196.1,2.50304]
[1720984468306,0.06537693,3196.2,3196.1,2.50304]
[1720984468508,0.49116307,3196.3,3196.1,2.50304]
[1720984468696,0.06537693,3196.2,3196.1,2.50304]
[1720984468898,0.49116307,3196.3,3196.1,2.50304]
[1720984469065,0.06537693,3196.2,3196.1,2.50304]
[1720984469269,0.49116307,3196.3,3196.1,2.50304]
[1720984469466,0.06537693,3196.2,3196.1,2.50304]
[1720984469699,0.49116307,3196.3,3196.1,2.50304]
[1720984469910,0.06537693,3196.2,3196.1,2.50304]
[1720984470072,0.49116307,3196.3,3196.1,2.50304]
[1720984470272,0.06537693,3196.2,3196.1,2.50304]
[1720984470516,0.49116307,3196.3,3196.1,2.50304]
[1720984470674,0.06537693,3196.2,3196.1,2.50304]
[1720984470874,0.49116307,3196.3,3196.1,2.50304]
[1720984471075,0.06537693,3196.2,3196.1,2.50304]
[1720984471289,0.49116307,3196.3,3196.1,2.50304]
[1720984471477,0.06547612,3196.2,3196.1,2.50304]
[1720984471676,0.49116307,3196.3,3196.1,2.50304]
[1720984471877,0.06547612,3196.2,3196.1,2.50304]
[1720984472089,0.49116307,3196.3,3196.1,2.50304]
[1720984472290,0.06547612,3196.2,3196.1,2.50304]
[1720984472490,0.49116307,3196.3,3196.1,2.50304]
[1720984472691,0.06547612,3196.2,3196.1,2.50304]
[1720984473206,0.49116307,3196.3,3196.1,2.50304]
[1720984473389,0.06547612,3196.2,3196.1,2.50304]
[1720984473574,0.49116307,3196.3,3196.1,2.50304]
[1720984473775,0.06547612,3196.2,3196.1,2.50304]
[1720984473976,0.49116307,3196.3,3196.1,2.50304]
[1720984474176,0.06547612,3196.2,3196.1,2.50304]
[1720984474378,0.49116307,3196.3,3196.1,2.50304]
[1720984474719,0.06547612,3196.2,3196.1,2.50304]
[1720984475177,0.49116307,3196.3,3196.1,2.50304]
[1720984475383,0.06547612,3196.2,3196.1,2.50304]
[1720984475605,0.49116307,3196.3,3196.1,2.50304]
[1720984475798,0.06547612,3196.2,3196.1,2.50304]
[1720984476116,0.49116307,3196.3,3196.1,2.50304]
[1720984476414,0.06547612,3196.2,3196.1,2.50304]
[1720984476603,0.49116307,3196.3,3196.1,2.50304]
[1720984476806,0.06547612,3196.2,3196.1,2.50304]
[1720984477101,0.49116307,3196.3,3196.1,2.50304]
[1720984477302,0.06547612,3196.2,3196.1,2.50304]
[1720984477498,0.49116307,3196.3,3196.1,2.50304]
[1720984477704,0.06547612,3196.2,3196.1,2.50304]
[1720984478082,0.49116307,3196.3,3196.1,2.50304]
[1720984478409,0.06547612,3196.2,3196.1,2.50304]
[1720984478615,0.49116307,3196.3,3196.1,2.50304]
[1720984478980,0.06547612,3196.2,3196.1,2.50304]
[1720984479182,0.49116307,3196.3,3196.1,2.50304]
[1720984479380,0.06547612,3196.2,3196.1,2.50304]
[1720984479610,0.49116307,3196.3,3196.1,2.50304]
[1720984479818,0.06547612,3196.2,3196.1,2.50304]
[1720984480025,0.49116307,3196.3,3196.1,2.50304]
[1720984480313,0.06547612,3196.2,3196.1,2.50304]
[1720984480794,0.49116307,3196.3,3196.1,2.50304]
[1720984481119,0.06547612,3196.2,3196.1,2.50304]
[1720984481626,0.49116307,3196.3,3196.1,2.50304]
[1720984482117,0.06547612,3196.2,3196.1,2.50304]
[1720984482613,0.49116307,3196.3,3196.1,2.50304]
[1720984482986,0.06547612,3196.2,3196.1,2.50304]
[1720984483315,0.49116307,3196.3,3196.1,2.50304]
[1720984483518,0.34501243,3196.2,3195.9,2.50314]
[1720984483892,0.06547612,3196.2,3195.9,2.50314]
[1720984484091,0.49116307,3196.3,3195.9,2.50314]
[1720984484297,0.06528873,3196.1,3195.9,2.50314]
[1720984484497,0.49116307,3196.3,3195.9,2.50314]
[1720984484804,0.06542314,3196.0,3195.9,2.50314]
[1720984485022,0.06546608,3196.0,3195.9,2.50313]
[1720984485325,0.49116307,3196.3,3195.9,5.00626]
[1720984485618,0.06546608,3196.0,3195.9,2.50313]
[1720984486418,0.49116307,3196.3,3195.9,5.00626]
[1720984486591,0.06519726,3196.2,3195.9,5.00626]
[1720984486800,0.49116307,3196.3,3195.9,5.00626]
[1720984486994,0.06519726,3196.2,3195.9,5.00626]
[1720984487195,0.49116307,3196.3,3195.9,5.00626]
[1720984487405,0.06519726,3196.2,3195.9,2.50313]
[1720984487732,0.80344074,3196.3,3195.9,2.50313]
[1720984487937,0.06533167,3196.1,3195.9,2.50313]
[1720984488143,0.80344074,3196.3,3195.9,2.50313]
[1720984488306,0.06546608,3196.0,3195.9,2.50313]
[1720984488500,0.80344074,3196.3,3195.9,2.50313]
[1720984488720,0.06546608,3196.0,3195.9,2.50313]
[1720984488940,0.49116307,3196.3,3195.9,2.50313]
[1720984489142,0.06545865,3196.0,3195.9,2.50313]
[1720984489342,0.49116307,3196.3,3195.9,2.50313]
[1720984489548,0.06545865,3196.0,3195.9,2.50313]
[1720984489748,0.49116307,3196.3,3195.9,2.50313]
[1720984489910,0.06545865,3196.0,3195.9,2.50313]
[1720984490243,0.06537276,3196.0,3195.9,2.50313]
[1720984490456,0.49116307,3196.3,3195.9,2.50313]
[1720984490619,0.06540824,3196.0,3195.9,2.50313]
[1720984490823,0.49116307,3196.3,3195.9,2.50313]
[1720984491134,0.34467573,3196.2,3195.9,2.50313]
[1720984496232,0.06513942,3196.2,3195.9,2.50313]
[1720984496438,0.49116307,3196.3,3195.9,2.50313]
[1720984496638,0.06509648,3196.2,3195.9,2.50313]
[1720984496975,0.49116307,3196.3,3195.9,2.50313]
[1720984497451,0.06513942,3196.2,3195.9,2.50313]
[1720984497773,0.49116307,3196.3,3195.9,2.50313]
[1720984497949,0.06527383,3196.1,3195.9,2.50313]
[1720984498268,0.06540824,3196.0,3195.9,2.50313]
[1720984498479,0.49116307,3196.3,3195.9,2.50313]
[1720984498640,0.06540824,3196.0,3195.9,2.50313]
[1720984498834,0.49116307,3196.3,3195.9,2.50313]
[1720984499041,0.06513942,3196.2,3195.9,2.50313]
[1720984499347,1.05371474,3196.3,3195.9,2.50313]
[1720984499549,0.06527383,3196.1,3195.9,2.50313]
[1720984499756,0.49116307,3196.3,3196.0,2.2885]
[1720984500329,0.49116307,3196.3,3195.8,3.0805]
[1720984500531,0.82329474,3196.3,3195.8,3.0805]
[1720984500742,0.00080761,3196.2,3195.8,5.58377]
[1720984500967,0.82329474,3196.3,3195.8,5.58377]
[1720984501360,0.00080761,3196.2,3195.8,5.58377]
[1720984501560,0.82329474,3196.3,3195.8,5.58377]
[1720984502147,0.82329474,3196.3,3195.5,2.50347]
[1720984502148,2.50305,3196.1,3195.5,4.79197]
[1720984502348,2.62351147,3196.2,3195.6,0.792]
[1720984502561,2.50302,3196.2,3195.6,0.792]
[1720984504678,0.06527533,3196.1,3195.6,3.29543]
[1720984506968,0.06527533,3196.1,3195.7,2.50335]
[1720984507175,0.06527533,3196.1,3195.8,2.2885]
[1720984507375,0.49116307,3196.3,3196.0,2.50311]
[1720984507563,0.49116307,3196.3,3196.0,4.79161]
[1720984508568,0.00081015,3196.2,3196.0,4.79161]
[1720984508971,0.49116307,3196.3,3196.0,4.79161]
[1720984513915,0.49116307,3196.3,3196.1,2.50302]
[1720984515511,0.49116307,3196.3,3196.2,2.50297]
[1720984515815,0.49116307,3196.3,3196.2,4.93487]
[1720984519318,0.49116307,3196.3,3196.2,9.052829]
[1720984537159,0.49116307,3196.3,3196.2,2.50297]
[1720984537344,0.55623564,3196.3,3196.0,2.50307]
[1720984537952,0.49116307,3196.3,3196.0,2.50307]
[1720984538117,0.06519357,3196.2,3196.0,2.50307]
[1720984538315,0.49116307,3196.3,3196.0,2.50307]
[1720984538514,0.06532798,3196.1,3196.0,2.50307]
[1720984538745,0.76771938,3196.3,3196.0,5.50307]
[1720984538928,0.06532798,3196.1,3196.0,5.50307]
[1720984539245,0.49116307,3196.3,3196.0,5.50307]
[1720984539420,0.49116307,3196.3,3196.0,2.50307]
[1720984539421,0.06537478,3196.1,3196.0,2.50307]
[1720984539632,0.49116307,3196.3,3196.0,5.50307]
[1720984539950,0.06537478,3196.1,3196.0,2.50307]
[1720984540249,0.49116307,3196.3,3196.0,3.29507]
[1720984540412,0.06536205,3196.1,3196.0,3.29507]
[1720984540618,0.06536205,3196.1,3195.8,5.50326]
[1720984540619,2.2744,3196.2,3195.8,6.29526]
[1720984540909,0.34191836,3196.1,3195.8,6.29526]
[1720984541115,0.06536205,3196.1,3195.8,6.29526]
[1720984542849,0.06536205,3196.1,3195.8,5.50326]
[1720984543149,0.06536205,3196.1,3195.8,6.29526]
[1720984557547,0.49116307,3196.3,3195.8,6.29526]
[1720984557747,0.49116307,3196.3,3196.0,0.792]
[1720984558031,1.03627038,3196.3,3196.0,0.792]
[1720984559169,0.49116307,3196.3,3196.0,0.792]
[1720984559474,0.49116307,3196.3,3196.0,3.29512]
[1720984562676,0.49116307,3196.3,3196.0,5.79819]
[1720984564564,0.49116307,3196.3,3196.1,2.50304]
[1720984564788,0.06502921,3196.2,3196.1,2.50304]
[1720984564947,0.49116307,3196.3,3196.1,2.50304]
[1720984565148,0.06502921,3196.2,3196.1,2.50304]
[1720984565361,0.49116307,3196.3,3196.1,2.50304]
[1720984565584,0.06502921,3196.2,3196.1,2.50304]
[1720984565771,0.49116307,3196.3,3196.1,2.50304]
[1720984565985,0.06502921,3196.2,3196.1,2.50304]
[1720984566392,0.49116307,3196.3,3196.1,2.50304]
[1720984566700,0.0651228,3196.2,3196.1,2.50304]
[1720984566994,0.49116307,3196.3,3196.1,2.50304]
[1720984567159,0.0651228,3196.2,3196.1,2.50304]
[1720984567360,0.49116307,3196.3,3196.1,2.50304]
[1720984567549,0.0651228,3196.2,3196.1,2.50304]
[1720984567746,0.49116307,3196.3,3196.1,2.50304]
[1720984567978,0.0651228,3196.2,3196.1,2.50304]
[1720984568178,0.49116307,3196.3,3196.1,2.50304]
[1720984568446,0.0651228,3196.2,3196.1,2.50304]
[1720984568851,0.49116307,3196.3,3196.1,2.50304]
[1720984569183,0.06516959,3196.2,3196.1,2.50304]
[1720984569398,0.49116307,3196.3,3196.1,2.50304]
[1720984569553,0.06521639,3196.2,3196.1,2.50304]
[1720984569753,0.49116307,3196.3,3196.1,2.50304]
[1720984569955,0.06517345,3196.2,3196.1,2.50304]
[1720984570181,0.49116307,3196.3,3196.1,2.50304]
[1720984570483,0.06525934,3196.2,3196.1,2.50304]
[1720984570853,0.49116307,3196.3,3196.1,2.50304]
[1720984571053,0.06525934,3196.2,3196.1,2.50304]
[1720984571475,0.49116307,3196.3,3196.1,2.50304]
[1720984571677,0.06525934,3196.2,3196.1,2.50304]
[1720984571987,0.49116307,3196.3,3196.1,2.50304]
[1720984572299,0.06525934,3196.2,3196.1,2.50304]
[1720984572583,0.49116307,3196.3,3196.1,2.50304]
[1720984572786,0.0653225,3196.2,3196.1,2.50304]
[1720984572983,0.49116307,3196.3,3196.1,2.50304]
[1720984573163,0.06523661,3196.2,3196.1,2.50304]
[1720984573368,0.49116307,3196.3,3196.1,2.50304]
[1720984573562,0.06527956,3196.2,3196.1,2.50304]
[1720984573766,0.49116307,3196.3,3196.1,2.50304]
[1720984573966,0.06527956,3196.2,3196.1,2.50304]
[1720984574166,0.49116307,3196.3,3196.1,2.50304]
[1720984574372,0.06527956,3196.2,3196.1,2.50304]
[1720984574574,2.01354263,3196.6,3196.1,2.50304]
[1720984574795,0.06310357,3196.2,3196.1,2.50304]
[1720984574973,0.49113003,3196.5,3196.1,2.50304]
[1720984575175,0.06310357,3196.2,3196.1,2.50304]
[1720984575387,0.49113003,3196.5,3196.1,2.50304]
[1720984575596,0.06310357,3196.2,3196.1,2.50304]
[1720984575784,0.49113003,3196.5,3196.1,2.50304]
[1720984576095,0.06310357,3196.2,3196.1,2.50304]
[1720984576303,0.49113003,3196.5,3196.1,2.50304]
[1720984576500,0.0628675,3196.2,3196.1,2.50304]
[1720984576667,0.49113003,3196.5,3196.1,2.50304]
[1720984576868,0.06282456,3196.2,3196.1,2.50304]
[1720984577184,0.0628675,3196.2,3196.1,2.50304]
[1720984577505,0.49113003,3196.5,3196.1,2.50304]
[1720984577706,0.0628675,3196.2,3196.1,2.50304]
[1720984578112,0.49113003,3196.5,3196.1,2.50304]
[1720984578300,0.0628675,3196.2,3196.1,2.50304]
[1720984578792,0.49113003,3196.5,3196.1,2.50304]
[1720984578996,0.0628675,3196.2,3196.1,2.50304]
[1720984579190,0.49113003,3196.5,3196.1,2.50304]
[1720984579397,0.49113003,3196.5,3196.2,0.792]
[1720984579599,0.49113003,3196.5,3196.4,2.50281]
[1720984582323,0.55359793,3196.5,3196.4,2.50281]
[1720984583221,0.5546721,3196.5,3196.4,2.50281]
[1720984588137,0.5546721,3196.5,3196.2,5.0058]
[1720984588424,0.55359793,3196.5,3196.2,5.0058]
[1720984588731,0.55359793,3196.5,3196.3,2.50289]
[1720984594019,0.00087344,3196.4,3196.3,2.50289]
[1720984594840,0.06353441,3196.4,3196.3,2.50289]
[1720984597451,0.06353441,3196.4,3196.1,2.50298]
[1720984597835,0.06266097,3196.4,3196.1,2.50298]
[1720984598627,0.31939433,3196.4,3195.8,3.792]
[1720984598963,2.2848,3196.3,3195.8,6.29528]
[1720984599944,2.2848,3196.3,3195.9,2.50319]
[1720984600112,5.27871003,3196.5,3195.9,2.50319]
[1720984600314,0.527871,3196.4,3195.9,2.50319]
[1720984601733,5.27871003,3196.5,3195.9,2.50319]
[1720984604114,0.00087344,3196.4,3195.9,2.50319]
[1720984604433,0.06262081,3196.4,3195.9,2.50319]
[1720984607329,0.06262081,3196.4,3195.8,3.792]
[1720984607827,0.00081663,3196.3,3195.8,6.29527]
[1720984608163,0.06262081,3196.4,3195.8,6.29527]
[1720984611140,0.00081419,3196.3,3195.8,6.29527]
[1720984611344,0.0628058,3196.2,3195.8,6.29527]
[1720984611533,5.27871003,3196.5,3195.8,6.29527]
[1720984611863,0.527871,3196.4,3195.8,6.29527]
[1720984612066,5.27871003,3196.5,3195.8,6.29527]
[1720984613167,0.00092129,3196.4,3195.8,6.29527]
[1720984613366,5.27871003,3196.5,3195.8,6.29527]
[1720984613667,0.00092129,3196.4,3195.8,6.29527]
[1720984614071,5.27871003,3196.5,3195.8,6.29527]
[1720984614431,0.00081169,3196.4,3195.8,6.29527]
[1720984614843,5.27871003,3196.5,3195.9,2.5032]
[1720984615044,6.08959593,3196.5,3195.9,2.5032]
[1720984615240,0.00081169,3196.4,3195.9,2.5032]
[1720984615730,5.27871003,3196.5,3195.9,2.5032]
[1720984615932,0.00081169,3196.4,3195.9,2.5032]
[1720984616173,5.27871003,3196.5,3195.9,2.5032]
[1720984616656,0.00092374,3196.4,3195.9,2.5032]
[1720984617055,5.27871003,3196.5,3195.9,2.5032]
[1720984619567,2.99391003,3196.5,3196.0,2.2828]
[1720984619965,2.99391003,3196.5,3196.0,3.0748]
[1720984620164,0.49113003,3196.5,3196.0,5.57789]
[1720984620371,0.49113003,3196.5,3196.0,6.685994]
[1720984620673,0.49113003,3196.5,3196.4,0.792]
[1720984620831,0.49113003,3196.5,3196.4,3.29481]
[1720984623042,0.49113003,3196.5,3196.4,0.792]
[1720984623581,0.49113003,3196.5,3196.3,4.78569]
[1720984624268,0.00088099,3196.4,3196.3,4.78569]
[1720984624843,0.06358763,3196.4,3196.3,4.78569]
[1720984633205,0.06270664,3196.4,3196.3,4.78569]
[1720984635925,0.06358763,3196.4,3196.3,4.78569]
[1720984636519,0.06270664,3196.4,3196.3,4.78569]
[1720984637994,0.06270664,3196.4,3196.3,7.28858]
[1720984638198,0.49113003,3196.5,3196.4,2.50281]
[1720984639800,0.55371568,3196.5,3196.4,2.50281]
[1720984641919,0.55475405,3196.5,3196.4,2.50281]
[1720984649951,0.55475405,3196.5,3196.4,4.94681]
[1720984654361,0.55475405,3196.5,3196.4,2.50281]
[1720984668373,0.55475405,3196.5,3196.2,3.29491]
[1720984668757,0.55371568,3196.5,3196.2,3.29491]
[1720984670773,0.55371568,3196.5,3196.3,5.00572]
[1720984670956,0.55371568,3196.5,3196.3,7.40322]
[1720984671163,0.55371568,3196.5,3196.3,4.90034]
[1720984671680,0.00102436,3196.4,3196.3,4.90034]
[1720984671896,0.0636041,3196.4,3196.3,4.90034]
[1720984673900,0.49113003,3196.5,3196.4,2.50281]
[1720984677582,0.49230933,3196.5,3196.4,2.50281]
[1720984684635,0.55494247,3196.5,3196.4,2.50281]
[1720984687262,0.55494247,3196.5,3196.4,3.29481]
[1720984697590,0.55494247,3196.5,3196.2,3.2949]
[1720984697872,0.55494247,3196.5,3196.0,2.50305]
[1720984697873,2.3487,3196.4,3196.0,2.50305]
[1720984698044,0.29036425,3196.3,3196.0,2.50305]
[1720984699678,0.06303186,3196.2,3196.0,3.29505]
[1720984699847,2.3487,3196.4,3196.0,3.29505]
[1720984700048,0.06289746,3196.3,3196.0,3.29505]
[1720984700278,0.06289746,3196.3,3196.0,5.7981]
[1720984700771,0.06289746,3196.3,3196.1,2.50302]
[1720984701147,0.49113003,3196.5,3196.1,2.50302]
[1720984701348,0.06299277,3196.2,3196.1,2.50302]
[1720984701550,0.49113003,3196.5,3196.1,2.50302]
[1720984701746,0.06307866,3196.2,3196.1,2.50302]
[1720984701959,0.49113003,3196.5,3196.1,2.50302]
[1720984702211,0.06307866,3196.2,3196.1,2.50302]
[1720984702392,0.49113003,3196.5,3196.1,2.50302]
[1720984702541,0.06307866,3196.2,3196.1,2.50302]
[1720984702970,0.49113003,3196.5,3196.1,2.50302]
[1720984703142,0.06090182,3196.2,3196.1,2.50302]
[1720984703477,0.49113003,3196.5,3196.1,2.50302]
[1720984704037,0.06142133,3196.4,3196.1,2.50302]
[1720984708678,0.06039697,3196.4,3196.1,2.50302]
[1720984709579,0.06039697,3196.4,3196.2,0.792]
[1720984710869,0.00086697,3196.3,3196.2,0.792]
[1720984711184,0.06039697,3196.4,3196.2,0.792]
[1720984711360,0.49113003,3196.5,3196.2,0.792]
[1720984711361,0.06063088,3196.3,3196.2,0.792]
[1720984711561,0.06143158,3196.3,3196.2,0.792]
[1720984711757,0.49113003,3196.5,3196.2,0.792]
[1720984711962,0.06072062,3196.3,3196.2,0.792]
[1720984712176,0.49113003,3196.5,3196.2,0.792]
[1720984712483,0.06072062,3196.3,3196.2,0.792]
[1720984712673,0.49113003,3196.5,3196.2,0.792]
[1720984713264,0.06058623,3196.4,3196.2,0.792]
[1720984718986,0.06058623,3196.4,3196.2,3.29496]
[1720984730024,0.06058623,3196.4,3196.2,2.50296]
[1720984730224,0.00086697,3196.3,3196.2,2.50296]
[1720984730713,0.06137896,3196.3,3196.2,2.50296]
[1720984733554,0.06051199,3196.3,3196.2,2.50296]
[1720984733746,0.49113003,3196.5,3196.2,2.50296]
[1720984736081,1.02537103,3196.5,3196.0,2.50305]
[1720984736262,1.02537103,3196.5,3196.0,5.00611]
[1720984736463,1.02537103,3196.5,3196.1,2.50302]